bitfinex/quotes_BTCUSD_20240101
["timestamp","ask_amount","ask_price","bid_price","bid_amount"]
[1704100116957,0.72817811,42593.0,42590.0,0.1137953]
[1704100117163,0.73017811,42593.0,42590.0,0.1137953]
[1704100117373,0.73017811,42593.0,42587.0,0.2423]
[1704100117374,0.72817811,42593.0,42587.0,0.2423]
[1704100117623,0.72817811,42593.0,42590.0,0.1137953]
[1704100117837,0.73017811,42593.0,42590.0,0.1137953]
[1704100118255,0.25861711,42593.0,42590.0,0.30681057]
[1704100118463,0.72817811,42593.0,42590.0,0.30681057]
[1704100118684,0.73017811,42593.0,42590.0,0.30681057]
[1704100119333,0.72977811,42593.0,42590.0,0.30681057]
[1704100119752,0.73017811,42593.0,42590.0,0.30681057]
[1704100119963,0.72817811,42593.0,42591.0,0.03068106]
[1704100120405,0.73017811,42593.0,42591.0,0.03068106]
[1704100120612,0.72817811,42593.0,42591.0,0.03068106]
[1704100120820,0.73017811,42593.0,42591.0,0.03068106]
[1704100121356,0.72617811,42593.0,42591.0,0.03068106]
[1704100121660,0.73017811,42593.0,42591.0,0.03068106]
[1704100121917,0.72817811,42593.0,42590.0,0.15936483]
[1704100122178,0.73017811,42593.0,42590.0,0.15936483]
[1704100122437,0.73017811,42593.0,42590.0,0.1137953]
[1704100123232,0.72817811,42593.0,42590.0,0.1137953]
[1704100123442,0.73017811,42593.0,42590.0,0.1137953]
[1704100123657,0.72817811,42593.0,42590.0,0.1137953]
[1704100123875,0.72617811,42593.0,42590.0,0.1137953]
[1704100124100,0.73017811,42593.0,42588.0,0.1137953]
[1704100124325,0.73017811,42593.0,42590.0,0.1127953]
[1704100126209,0.72817811,42593.0,42590.0,0.1]
[1704100126459,0.73017811,42593.0,42588.0,0.1127953]
[1704100126965,0.72817811,42593.0,42588.0,0.1127953]
[1704100127218,0.73017811,42593.0,42589.0,0.1127953]
[1704100127458,0.72817811,42593.0,42590.0,0.1127953]
[1704100127704,0.72817811,42593.0,42588.0,0.1127953]
[1704100127950,0.72817811,42593.0,42590.0,0.1127953]
[1704100128194,0.73017811,42593.0,42590.0,0.1127953]
[1704100128438,0.72817811,42593.0,42590.0,0.1127953]
[1704100128908,0.73017811,42593.0,42590.0,0.1127953]
[1704100129946,0.72817811,42593.0,42590.0,0.1127953]
[1704100130342,0.73017811,42593.0,42590.0,0.1127953]
[1704100131363,0.73017811,42593.0,42591.0,0.2388]
[1704100133048,0.72817811,42593.0,42591.0,0.2388]
[1704100133303,0.72617811,42593.0,42591.0,0.2388]
[1704100133564,0.73017811,42593.0,42591.0,0.2388]
[1704100135063,0.0004,42592.0,42587.0,0.1127953]
[1704100135311,0.23321711,42591.0,42587.0,0.1127953]
[1704100135543,0.023,42590.0,42587.0,0.1127953]
[1704100136060,0.023,42590.0,42588.0,0.1127953]
[1704100136551,0.023,42590.0,42589.0,0.2448]
[1704100136759,0.023,42590.0,42589.0,0.3448]
[1704100137192,0.024,42590.0,42589.0,0.3448]
[1704100137405,0.025,42590.0,42589.0,0.3448]
[1704100137853,0.024,42590.0,42589.0,0.3448]
[1704100138027,0.023,42590.0,42589.0,0.3448]
[1704100138340,0.024,42590.0,42589.0,0.2448]
[1704100138793,0.024,42590.0,42589.0,0.3448]
[1704100139473,0.024,42590.0,42589.0,0.2448]
[1704100139709,0.025,42590.0,42589.0,0.2448]
[1704100140908,0.025,42590.0,42589.0,0.3448]
[1704100142292,0.002,42590.0,42589.0,0.41783642]
[1704100142526,0.002,42590.0,42589.0,0.46763642]
[1704100143013,0.002,42590.0,42589.0,0.56723642]
[1704100144645,0.002,42590.0,42589.0,0.5069953]
[1704100147464,0.002,42590.0,42589.0,0.4571953]
[1704100149035,0.002,42590.0,42589.0,0.5068153]
[1704100149669,0.002,42590.0,42589.0,0.4571953]
[1704100150129,0.002,42590.0,42589.0,0.5031553]
[1704100150344,0.002,42590.0,42589.0,0.61495332]
[1704100152072,0.002,42590.0,42589.0,0.61447332]
[1704100153347,0.002,42590.0,42589.0,0.56899332]
[1704100153598,0.002,42590.0,42589.0,0.61447332]
[1704100153813,0.002,42590.0,42589.0,0.56899332]
[1704100155376,0.002,42590.0,42589.0,0.61543332]
[1704100155589,0.002,42590.0,42589.0,0.56899332]
[1704100155832,0.002,42590.0,42589.0,0.61453332]
[1704100156048,0.002,42590.0,42589.0,0.56899332]
[1704100156262,0.002,42590.0,42589.0,0.62029332]
[1704100157987,0.002,42590.0,42589.0,1.08989732]
[1704100159699,0.002,42590.0,42589.0,1.21659732]
[1704100159898,0.002,42590.0,42589.0,1.71309047]
[1704100160262,0.002,42590.0,42589.0,1.93442006]
[1704100160470,0.002,42590.0,42589.0,2.15210713]
[1704100161160,0.001,42590.0,42589.0,2.01875922]
[1704100161599,0.001,42590.0,42589.0,2.19172252]
[1704100161821,0.09399,42600.0,42599.0,0.1]
[1704100162039,0.11699,42600.0,42599.0,0.1]
[1704100162465,0.11699,42600.0,42599.0,0.1127953]
[1704100163106,0.11799,42600.0,42599.0,0.1127953]
[1704100163776,0.11699,42600.0,42599.0,0.1127953]
[1704100164000,0.11999,42600.0,42599.0,0.1127953]
[1704100164220,0.11699,42600.0,42599.0,0.1127953]
[1704100165331,0.11799,42600.0,42599.0,0.1127953]
[1704100168451,0.82109011,42600.0,42597.0,0.1]
[1704100168673,0.25621711,42599.0,42597.0,0.1]
[1704100168899,0.469505,42598.0,42594.0,0.1127953]
[1704100169110,0.469505,42598.0,42596.0,0.1127953]
[1704100169111,0.023,42597.0,42596.0,0.1127953]
[1704100169563,0.023,42597.0,42594.0,0.1127953]
[1704100169782,0.023,42597.0,42596.0,0.1127953]
[1704100169994,0.023,42597.0,42594.0,0.1127953]
[1704100170426,0.024,42597.0,42596.0,0.003]
[1704100171161,0.024,42597.0,42596.0,0.1157953]
[1704100171377,0.023,42597.0,42596.0,0.1127953]
[1704100171595,0.024,42597.0,42596.0,0.1157953]
[1704100172427,0.001,42597.0,42596.0,0.1157953]
[1704100172649,0.025,42597.0,42596.0,0.1157953]
[1704100172794,0.024,42597.0,42596.0,0.1157953]
[1704100173248,0.025,42597.0,42596.0,0.1187953]
[1704100173467,0.025,42597.0,42596.0,0.39588364]
[1704100173468,0.002,42597.0,42596.0,0.39588364]
[1704100173671,0.002,42597.0,42596.0,0.47148364]
[1704100174078,0.002,42597.0,42596.0,0.39588364]
[1704100175177,0.002,42597.0,42596.0,0.24966411]
[1704100175951,0.002,42597.0,42596.0,0.49006411]
[1704100176381,0.002,42597.0,42596.0,0.58966411]
[1704100178689,0.002,42597.0,42596.0,0.2464]
[1704100179112,0.002,42597.0,42596.0,0.006]
[1704100179533,0.002,42597.0,42596.0,0.1187953]
[1704100180178,0.23521711,42597.0,42596.0,0.006]
[1704100180388,0.93195581,42597.0,42596.0,0.006]
[1704100180610,1.00419832,42597.0,42596.0,0.006]
[1704100181066,0.0004,42593.0,42590.0,0.1]
[1704100181276,0.23321711,42592.0,42590.0,0.1]
[1704100182109,0.23321711,42592.0,42589.0,0.1]
[1704100182337,0.0004,42591.0,42587.0,0.1]
[1704100182569,0.23321711,42590.0,42587.0,0.1]
[1704100182769,0.23321711,42590.0,42588.0,0.1]
[1704100183396,0.23321711,42590.0,42587.0,0.0127953]
[1704100183397,0.23321711,42590.0,42587.0,0.1]
[1704100184031,0.23361711,42590.0,42587.0,0.1]
[1704100184233,0.23761711,42590.0,42587.0,0.1]
[1704100184641,0.23361711,42590.0,42587.0,0.1]
[1704100184855,0.23761711,42590.0,42587.0,0.1]
[1704100185299,0.24161711,42590.0,42587.0,0.1]
[1704100185710,0.23761711,42590.0,42587.0,0.1]
[1704100186631,0.24161711,42590.0,42587.0,0.1]
[1704100187043,0.23761711,42590.0,42587.0,0.1]
[1704100188558,0.24161711,42590.0,42587.0,0.1]
[1704100196538,0.24161711,42590.0,42588.0,0.03462953]
[1704100196746,0.24161711,42590.0,42587.0,0.1]
[1704100197800,0.23761711,42590.0,42587.0,0.1]
[1704100198010,0.24161711,42590.0,42587.0,0.1]
[1704100198849,0.23761711,42590.0,42587.0,0.1]
[1704100199232,0.23761711,42590.0,42587.0,0.15107133]
[1704100199443,0.24161711,42590.0,42587.0,0.15107133]
[1704100200291,0.24121711,42590.0,42587.0,0.22787834]
[1704100200502,0.008,42590.0,42589.0,0.1127953]
[1704100200928,0.008,42590.0,42589.0,0.3600953]
[1704100201367,0.004,42590.0,42589.0,0.3600953]
[1704100201794,0.008,42590.0,42589.0,0.3600953]
[1704100202009,0.008,42590.0,42589.0,0.41885266]
[1704100202227,0.008,42590.0,42589.0,0.3600953]
[1704100202852,0.004,42590.0,42589.0,0.3600953]
[1704100203070,0.008,42590.0,42589.0,0.3600953]
[1704100206030,0.008,42590.0,42589.0,0.67129181]
[1704100206278,0.008,42590.0,42589.0,0.70057181]
[1704100206490,0.008,42590.0,42589.0,1.24996499]
[1704100207117,0.004,42590.0,42589.0,1.24996499]
[1704100207548,0.001,42590.0,42589.0,1.25096499]
[1704100207744,0.002,42590.0,42589.0,1.25196499]
[1704100207988,0.001,42590.0,42589.0,1.25096499]
[1704100208194,0.0004,42599.0,42589.0,1.25096499]
[1704100208195,0.0004,42599.0,42589.0,1.24996499]
[1704100208414,0.23361711,42598.0,42595.0,0.1]
[1704100209119,0.23361711,42598.0,42593.0,0.2368]
[1704100209120,0.0004,42596.0,42593.0,0.2368]
[1704100209337,0.23361711,42595.0,42593.0,0.2368]
[1704100210636,0.23561711,42595.0,42593.0,0.2368]
[1704100211272,0.23861711,42595.0,42593.0,0.2368]
[1704100212683,0.23821711,42595.0,42593.0,0.2368]
[1704100213516,0.23821711,42595.0,42593.0,0.28715545]
[1704100215169,0.005,42595.0,42594.0,0.1127953]
[1704100216287,0.003,42595.0,42594.0,0.1127953]
[1704100216767,0.005,42595.0,42594.0,0.1127953]
[1704100216958,0.002,42595.0,42594.0,0.1127953]
[1704100217416,0.003,42595.0,42594.0,0.1127953]
[1704100217854,0.005,42595.0,42594.0,0.1127953]
[1704100218735,0.005,42595.0,42594.0,0.17814629]
[1704100219829,0.003,42595.0,42594.0,0.17814629]
[1704100220041,0.005,42595.0,42594.0,0.17814629]
[1704100220563,0.002,42595.0,42594.0,0.17814629]
[1704100220792,0.469508,42598.0,42594.0,0.17814629]
[1704100221019,0.23321711,42597.0,42595.0,0.1]
[1704100221445,0.23321711,42597.0,42596.0,0.2289]
[1704100221926,0.093985,42602.0,42601.0,0.1127953]
[1704100223724,0.101985,42602.0,42601.0,0.1127953]
[1704100224233,0.093985,42602.0,42601.0,0.1127953]
[1704100224477,0.097985,42602.0,42601.0,0.1127953]
[1704100224897,0.101985,42602.0,42601.0,0.1127953]
[1704100226613,0.101985,42602.0,42601.0,0.1]
[1704100226869,0.101985,42602.0,42601.0,0.1127953]
[1704100228189,0.101985,42602.0,42599.0,0.2439]
[1704100229662,0.097985,42602.0,42599.0,0.2439]
[1704100230254,0.093985,42602.0,42599.0,0.2439]
[1704100230431,0.097985,42602.0,42599.0,0.2439]
[1704100230657,0.23361711,42601.0,42599.0,0.2439]
[1704100230857,0.23361711,42601.0,42598.0,0.1127953]
[1704100231033,0.30370599,42601.0,42598.0,0.1127953]
[1704100231251,0.23361711,42601.0,42598.0,0.1127953]
[1704100231659,0.30191941,42601.0,42598.0,0.1127953]
[1704100231923,0.30229502,42601.0,42598.0,0.1127953]
[1704100232552,0.30229502,42601.0,42598.0,0.1]
[1704100232756,0.77276702,42601.0,42598.0,0.1]
[1704100232983,0.70508911,42601.0,42598.0,0.1]
[1704100233194,0.70408911,42601.0,42598.0,0.1127953]
[1704100233468,0.70508911,42601.0,42598.0,0.1127953]
[1704100233907,0.70508911,42601.0,42598.0,0.1]
[1704100234089,0.70508911,42601.0,42598.0,0.1127953]
[1704100234518,0.70508911,42601.0,42594.0,0.6571]
[1704100234519,0.0004,42596.0,42594.0,0.6571]
[1704100234746,0.23321711,42595.0,42594.0,0.8923]
[1704100236051,0.18891711,42595.0,42594.0,0.8923]
[1704100236267,0.18991711,42595.0,42594.0,0.8923]
[1704100236697,0.18991711,42595.0,42594.0,0.99280953]
[1704100236924,0.18891711,42595.0,42594.0,0.99280953]
[1704100237158,0.18891711,42595.0,42594.0,0.33570953]
[1704100237373,0.18991711,42595.0,42594.0,0.2352]
[1704100237986,0.19091711,42595.0,42594.0,0.2352]
[1704100247535,0.19131711,42595.0,42594.0,0.2352]
[1704100247761,0.26158498,42595.0,42591.0,0.2364]
[1704100247957,0.31784101,42595.0,42591.0,0.2364]
[1704100248335,0.05625603,42594.0,42591.0,0.2364]
[1704100248536,0.35974101,42594.0,42591.0,0.2364]
[1704100248739,0.05625603,42593.0,42591.0,0.2364]
[1704100249010,0.30348498,42594.0,42591.0,0.2364]
[1704100249011,0.35974101,42594.0,42591.0,0.2364]
[1704100250580,0.30348498,42594.0,42591.0,0.2364]
[1704100251764,0.30348498,42594.0,42592.0,0.1]
[1704100252490,0.23321711,42594.0,42592.0,0.1]
[1704100252691,0.23321711,42594.0,42591.0,0.2364]
[1704100253147,0.23321711,42594.0,42592.0,0.1]
[1704100253416,0.31528584,42594.0,42592.0,0.1]
[1704100253672,0.23321711,42594.0,42592.0,0.1]
[1704100254037,0.05625603,42597.0,42594.0,0.0127953]
[1704100254259,0.05625603,42600.0,42596.0,0.1127953]
[1704100254473,0.23321711,42599.0,42596.0,0.1127953]
[1704100254665,0.23321711,42599.0,42597.0,0.2353]
[1704100254916,0.23321711,42599.0,42597.0,0.3353]
[1704100255132,0.15024103,42602.0,42599.0,0.1]
[1704100255361,0.53321711,42601.0,42599.0,0.1]
[1704100255571,0.53321711,42601.0,42600.0,0.2429]
[1704100256298,0.58947314,42601.0,42600.0,0.2429]
[1704100256704,0.65439825,42601.0,42600.0,0.2429]
[1704100257112,1.14427025,42601.0,42594.0,0.1]
[1704100257294,1.17242411,42601.0,42597.0,0.2429]
[1704100257532,0.05627492,42599.0,42597.0,0.2429]
[1704100257746,0.25661711,42598.0,42597.0,0.2429]
[1704100257958,0.72612211,42598.0,42597.0,0.2429]
[1704100258165,0.0004,42597.0,42594.0,0.1]
[1704100258386,0.23321711,42596.0,42595.0,0.2317]
[1704100259754,0.23621711,42596.0,42595.0,0.2317]
[1704100259957,0.23821711,42596.0,42595.0,0.2317]
[1704100260579,0.23821711,42596.0,42595.0,0.27063748]
[1704100264596,0.23821711,42596.0,42595.0,0.2317]
[1704100278260,0.0004,42592.0,42587.0,0.1127953]
[1704100278501,0.79625436,42591.0,42590.0,0.2483]
[1704100278763,0.79625436,42591.0,42587.0,0.1127953]
[1704100278764,0.85258383,42591.0,42587.0,0.1127953]
[1704100278999,0.0004,42587.0,42583.0,0.05]
[1704100279236,0.28955404,42586.0,42584.0,0.2483]
[1704100279484,0.23321711,42586.0,42580.0,0.14874631]
[1704100279717,0.09305217,42585.0,42583.0,0.2335]
[1704100279939,0.09305217,42585.0,42581.0,0.1127953]
[1704100279940,0.28953613,42584.0,42581.0,0.2335]
[1704100280154,0.28953613,42584.0,42579.0,0.1]
[1704100280344,0.28953613,42584.0,42580.0,0.2335]
[1704100280798,0.75959913,42584.0,42580.0,0.2335]
[1704100281017,0.75959913,42584.0,42580.0,0.3462953]
[1704100281018,0.05631902,42583.0,42580.0,0.3462953]
[1704100281248,0.23321711,42583.0,42580.0,0.3462953]
[1704100281460,0.23321711,42583.0,42581.0,0.03462953]
[1704100283158,0.24021711,42583.0,42580.0,0.2335]
[1704100283373,0.24021711,42583.0,42580.0,0.3462953]
[1704100284305,0.24721711,42583.0,42580.0,0.2335]
[1704100284548,0.24021711,42583.0,42580.0,0.3462953]
[1704100284767,0.24721711,42583.0,42580.0,0.27808953]
[1704100285154,0.24021711,42583.0,42580.0,0.39088483]
[1704100285637,0.24721711,42583.0,42580.0,0.39088483]
[1704100286487,0.23321711,42582.0,42580.0,0.2335]
[1704100286701,0.0004,42581.0,42580.0,0.2335]
[1704100286885,0.23361711,42581.0,42580.0,0.2335]
[1704100288524,0.23761711,42581.0,42580.0,0.2335]
[1704100289574,0.24161711,42581.0,42580.0,0.2335]
[1704100296696,0.33564511,42581.0,42580.0,0.2335]
[1704100297350,0.33564511,42581.0,42580.0,0.26812953]
[1704100300676,0.102028,42581.0,42580.0,0.38092483]
[1704100300880,0.008,42581.0,42580.0,0.38092483]
[1704100301713,0.008,42581.0,42580.0,0.48052483]
[1704100306032,0.008,42581.0,42580.0,0.52750483]
[1704100306685,0.008,42581.0,42580.0,1.24507492]
[1704100307340,0.004,42581.0,42580.0,1.24507492]
[1704100307551,0.004,42581.0,42580.0,1.26547492]
[1704100307805,0.001,42581.0,42580.0,1.26547492]
[1704100308008,0.002,42581.0,42580.0,1.36647492]
[1704100308240,0.001,42581.0,42580.0,1.30944883]
[1704100308473,0.469565,42593.0,42591.0,0.1]
[1704100308701,0.70278211,42593.0,42591.0,0.1]
[1704100308913,0.70278211,42593.0,42592.0,0.2419]
[1704100309133,0.53321711,42593.0,42592.0,0.27736953]
[1704100309332,1.00278211,42593.0,42592.0,0.27736953]
[1704100309768,1.09678811,42593.0,42592.0,0.27736953]
[1704100310005,0.863571,42593.0,42592.0,0.37736953]
[1704100310425,0.871571,42593.0,42592.0,0.37736953]
[1704100311659,0.879571,42593.0,42592.0,0.37736953]
[1704100312555,0.110006,42593.0,42592.0,0.19917312]
[1704100312769,0.110006,42593.0,42592.0,0.38276483]
[1704100313201,0.110006,42593.0,42592.0,0.3472953]
[1704100335735,0.110006,42593.0,42592.0,0.4468953]
[1704100340654,0.016,42593.0,42592.0,0.4468953]
[1704100342586,0.008,42593.0,42592.0,0.4468953]
[1704100342802,0.093994,42596.0,42592.0,0.4468953]
[1704100343027,0.093994,42596.0,42595.0,0.2123953]
[1704100343898,0.46951,42598.0,42595.0,0.2123953]
[1704100344318,0.46951,42598.0,42596.0,0.2422]
[1704100344547,0.46951,42598.0,42597.0,0.1127953]
[1704100344973,0.55803993,42598.0,42597.0,0.1127953]
[1704100345186,0.65203193,42598.0,42597.0,0.15825483]
[1704100346058,0.65803193,42598.0,42597.0,0.15825483]
[1704100346297,0.18852193,42598.0,42597.0,0.15825483]
[1704100346514,0.569508,42598.0,42597.0,0.15825483]
[1704100346731,0.66203793,42598.0,42597.0,0.15825483]
[1704100347372,0.65603793,42598.0,42597.0,0.1127953]
[1704100347806,0.66003793,42598.0,42597.0,0.1127953]
[1704100349524,0.571508,42598.0,42597.0,0.1127953]
[1704100349744,0.101992,42598.0,42597.0,0.1127953]
[1704100349961,0.571508,42598.0,42597.0,0.17345805]
[1704100353843,0.571508,42598.0,42597.0,0.1127953]
[1704100356266,0.101992,42598.0,42597.0,0.1127953]
[1704100356469,0.571508,42598.0,42597.0,0.1127953]
[1704100365179,0.65243472,42598.0,42597.0,0.1127953]
[1704100375599,0.68915281,42598.0,42597.0,0.1127953]
[1704100378600,0.7454001,42598.0,42597.0,0.1127953]
[1704100378826,0.74550339,42598.0,42597.0,0.1127953]
[1704100379403,0.74550339,42598.0,42597.0,0.17345805]
[1704100380215,0.74550339,42598.0,42597.0,0.1127953]
[1704100381214,0.68915281,42598.0,42597.0,0.1127953]
[1704100382007,0.74550339,42598.0,42597.0,0.1127953]
[1704100386531,0.77367868,42598.0,42597.0,0.1127953]
[1704100392145,0.77367868,42598.0,42596.0,0.2422]
[1704100392358,0.58716081,42597.0,42596.0,0.1127953]
[1704100392555,0.69995603,42597.0,42596.0,0.1127953]
[1704100392757,0.72803726,42597.0,42596.0,0.1127953]
[1704100393224,0.69995829,42597.0,42596.0,0.1127953]
[1704100394057,0.58716081,42597.0,42596.0,0.1127953]
[1704100394354,0.67173994,42597.0,42596.0,0.1127953]
[1704100394843,0.59016081,42597.0,42596.0,0.3607953]
[1704100395073,0.67473534,42597.0,42596.0,0.3607953]
[1704100395949,0.59316081,42597.0,42596.0,0.3607953]
[1704100396218,0.59316081,42597.0,42596.0,0.40683483]
[1704100396447,0.67773534,42597.0,42596.0,0.40683483]
[1704100396705,0.67773534,42597.0,42596.0,0.3607953]
[1704100399319,0.59316081,42597.0,42596.0,0.3607953]
[1704100399744,0.67773534,42597.0,42596.0,0.3607953]
[1704100400977,0.59316081,42597.0,42596.0,0.3607953]
[1704100401186,0.67773534,42597.0,42596.0,0.3607953]
[1704100402241,0.59316081,42597.0,42596.0,0.3607953]
[1704100402454,0.67773534,42597.0,42596.0,0.3607953]
[1704100408937,0.0004,42596.0,42593.0,0.1]
[1704100409144,0.52591768,42594.0,42593.0,0.1]
[1704100409369,0.469549,42594.0,42591.0,0.2262]
[1704100409592,0.469571,42592.0,42591.0,0.1127953]
[1704100409981,0.53726071,42592.0,42591.0,0.1127953]
[1704100410185,0.5372606,42592.0,42591.0,0.1]
[1704100410387,0.53726136,42592.0,42591.0,0.1]
[1704100410612,0.53726136,42592.0,42591.0,0.1127953]
[1704100410822,0.77487847,42592.0,42588.0,0.1127953]
[1704100411031,0.25621711,42591.0,42588.0,0.1127953]
[1704100411242,0.469597,42590.0,42588.0,0.1127953]
[1704100411448,0.469597,42590.0,42588.0,0.15693683]
[1704100412092,0.05635748,42594.0,42588.0,0.15693683]
[1704100412093,0.469567,42593.0,42591.0,0.1127953]
[1704100412595,0.469567,42593.0,42592.0,0.2427]
[1704100413473,0.476567,42593.0,42592.0,0.2427]
[1704100413854,0.476567,42593.0,42592.0,0.27824953]
[1704100414384,0.469567,42593.0,42592.0,0.27824953]
[1704100414553,0.483567,42593.0,42592.0,0.27824953]
[1704100415905,0.476567,42593.0,42592.0,0.27824953]
[1704100416227,0.481567,42593.0,42592.0,0.27824953]
[1704100416431,0.474567,42593.0,42592.0,0.27824953]
[1704100416858,0.469567,42593.0,42592.0,0.27824953]
[1704100417067,0.474567,42593.0,42592.0,0.27824953]
[1704100417269,0.479567,42593.0,42592.0,0.27824953]
[1704100417467,0.474567,42593.0,42592.0,0.27824953]
[1704100417877,0.479567,42593.0,42592.0,0.27824953]
[1704100418302,0.474567,42593.0,42592.0,0.27824953]
[1704100418962,0.469567,42593.0,42592.0,0.27824953]
[1704100419396,0.474567,42593.0,42592.0,0.27824953]
[1704100420341,0.479567,42593.0,42592.0,0.27824953]
[1704100420526,0.469567,42593.0,42592.0,0.27824953]
[1704100420737,0.469567,42593.0,42592.0,0.2427]
[1704100421100,0.474567,42593.0,42592.0,0.2427]
[1704100422215,0.479567,42593.0,42592.0,0.2427]
[1704100423520,0.474567,42593.0,42592.0,0.2427]
[1704100423728,0.479567,42593.0,42592.0,0.2427]
[1704100423934,0.479567,42593.0,42592.0,0.27824953]
[1704100424768,0.01,42593.0,42592.0,0.37824953]
[1704100440263,0.01,42593.0,42592.0,0.3427]
[1704100452944,0.01,42593.0,42592.0,0.3554953]
[1704100453159,0.01,42593.0,42592.0,0.4550953]
[1704100461179,0.06635748,42593.0,42592.0,0.4550953]
[1704100461601,0.01,42593.0,42592.0,0.4550953]
[1704100461868,0.01,42593.0,42592.0,0.56265328]
[1704100462339,0.06635748,42593.0,42592.0,0.56265328]
[1704100462752,0.01,42593.0,42592.0,0.56265328]
[1704100463260,0.06635748,42593.0,42592.0,0.56265328]
[1704100463772,0.06635748,42593.0,42592.0,0.4550953]
[1704100465466,0.01,42593.0,42592.0,0.4550953]
[1704100466316,0.06635748,42593.0,42592.0,0.4550953]
[1704100474921,0.06639142,42593.0,42592.0,0.4550953]
[1704100477219,0.01,42593.0,42592.0,0.4550953]
[1704100477436,0.06639142,42593.0,42592.0,0.55422784]
[1704100477646,0.01,42593.0,42592.0,0.55422784]
[1704100477864,0.1093328,42597.0,42595.0,0.1127953]
[1704100478106,0.5566167,42607.0,42595.0,0.1127953]
[1704100478107,0.02113,42605.0,42604.0,0.5123953]
[1704100478322,0.0872047,42628.0,42622.0,0.1]
[1704100478713,0.37892262,42627.0,42622.0,0.1]
[1704100478715,0.36712262,42627.0,42622.0,0.1]
[1704100478926,0.01,42626.0,42622.0,0.1]
[1704100479129,0.23321711,42625.0,42622.0,0.1]
[1704100479329,0.469164,42629.0,42623.0,0.11422172]
[1704100479330,0.08577828,42629.0,42623.0,0.11422172]
[1704100479527,0.23321711,42628.0,42624.0,0.1]
[1704100480748,0.023,42627.0,42624.0,0.1]
[1704100480959,0.08577828,42625.0,42624.0,0.001]
[1704100481242,0.31899539,42625.0,42624.0,0.001]
[1704100481447,0.37479539,42625.0,42624.0,0.001]
[1704100481653,0.67479539,42625.0,42624.0,0.001]
[1704100481855,0.82131417,42625.0,42624.0,0.001]
[1704100482061,0.76551417,42625.0,42624.0,0.001]
[1704100482269,0.78851417,42625.0,42624.0,0.001]
[1704100482505,0.08577828,42622.0,42617.0,0.1]
[1704100482716,0.34950396,42621.0,42617.0,0.1]
[1704100484094,0.25621711,42621.0,42617.0,0.1]
[1704100485117,0.25621711,42621.0,42617.0,0.103]
[1704100487048,0.023,42621.0,42617.0,0.103]
[1704100487288,0.323,42623.0,42617.0,0.103]
[1704100487509,0.23321711,42622.0,42617.0,0.103]
[1704100487717,0.023,42621.0,42617.0,0.103]
[1704100488136,0.023,42621.0,42617.0,0.101]
[1704100488741,0.023,42621.0,42617.0,0.1]
[1704100489281,0.0597766,42621.0,42617.0,0.1]
[1704100489960,0.0597766,42621.0,42617.0,0.102]
[1704100490379,0.0597766,42621.0,42617.0,0.103]
[1704100500315,0.0597766,42621.0,42617.0,0.3471]
[1704100500886,0.0597766,42621.0,42618.0,0.11422172]
[1704100502700,0.0597766,42621.0,42618.0,0.11622172]
[1704100503111,0.0597766,42621.0,42618.0,0.11722172]
[1704100505351,0.023,42621.0,42618.0,0.11722172]
[1704100505568,0.023,42620.0,42618.0,0.11722172]
[1704100505773,0.023,42622.0,42618.0,0.11722172]
[1704100506375,0.023,42622.0,42618.0,0.11422172]
[1704100506797,0.001,42620.0,42619.0,0.1]
[1704100507150,0.023,42622.0,42619.0,0.1]
[1704100507572,0.024,42622.0,42619.0,0.1]
[1704100509316,0.001,42620.0,42619.0,0.103]
[1704100509535,0.024,42622.0,42619.0,0.1]
[1704100509804,0.023,42622.0,42619.0,0.1]
[1704100510011,0.024,42622.0,42619.0,0.1]
[1704100511107,0.001,42622.0,42621.0,0.11422172]
[1704100512214,0.023,42626.0,42623.0,0.1]
[1704100512466,0.03669877,42625.0,42623.0,0.1]
[1704100512665,0.023,42626.0,42624.0,0.1]
[1704100513984,0.029,42626.0,42624.0,0.1]
[1704100514211,0.035,42626.0,42624.0,0.101]
[1704100515223,0.029,42626.0,42624.0,0.101]
[1704100515691,0.035,42626.0,42624.0,0.102]
[1704100518449,0.035,42626.0,42625.0,0.1]
[1704100518631,0.012,42626.0,42625.0,0.11422172]
[1704100519163,0.006,42626.0,42625.0,0.11422172]
[1704100519379,0.32815312,42629.0,42625.0,0.11422172]
[1704100519380,0.48560575,42629.0,42625.0,0.11422172]
[1704100519593,0.012,42626.0,42625.0,0.11622172]
[1704100520234,0.006,42626.0,42625.0,0.11522172]
[1704100521702,0.006,42626.0,42625.0,0.11622172]
[1704100522343,0.006,42626.0,42625.0,0.11522172]
[1704100522558,0.012,42626.0,42625.0,0.11622172]
[1704100524017,0.006,42626.0,42625.0,0.11522172]
[1704100524459,0.012,42626.0,42625.0,0.11622172]
[1704100525316,0.006,42626.0,42625.0,0.11522172]
[1704100525516,0.023,42628.0,42625.0,0.11422172]
[1704100525701,0.007,42626.0,42625.0,0.11522172]
[1704100526023,0.009,42626.0,42625.0,0.11522172]
[1704100526255,0.002,42626.0,42625.0,0.11422172]
[1704100526659,0.004,42626.0,42625.0,0.11422172]
[1704100542270,0.004,42626.0,42625.0,0.21422172]
[1704100545620,0.004,42626.0,42625.0,0.26942172]
[1704100545848,0.002,42626.0,42625.0,0.26942172]
[1704100546280,0.002,42626.0,42625.0,0.73862972]
[1704100546616,0.002,42626.0,42625.0,0.68342972]
[1704100546617,0.004,42626.0,42625.0,0.68342972]
[1704100546831,0.002,42626.0,42625.0,0.68342972]
[1704100547036,0.001,42626.0,42625.0,0.68942972]
[1704100548086,0.001,42626.0,42625.0,0.22022172]
[1704100548293,0.001,42626.0,42625.0,0.68942972]
[1704100548497,0.002,42626.0,42625.0,0.69642972]
[1704100548725,0.002,42626.0,42625.0,0.22722172]
[1704100553789,0.002,42626.0,42625.0,0.12722172]
[1704100553940,0.002,42626.0,42625.0,0.22722172]
[1704100560202,0.002,42626.0,42625.0,0.22241401]
[1704100569502,0.002,42626.0,42625.0,0.12241401]
[1704100569730,0.13827033,42626.0,42625.0,0.12241401]